bitfinex/quotes_SOLUSD_20240708
["timestamp","ask_amount","ask_price","bid_price","bid_amount"]
[1720445536399,7.0784,141.28,141.22,0.34]
[1720445536698,20.0,141.32,141.21,6.5169]
[1720445536901,7.0802,141.24,141.21,6.5169]
[1720445537087,7.0798,141.25,141.21,13.5984]
[1720445537402,7.0803,141.24,141.21,6.5169]
[1720445537601,7.0798,141.25,141.21,6.5169]
[1720445538101,7.0802,141.24,141.21,6.5169]
[1720445539286,7.0807,141.23,141.21,0.2]
[1720445539485,7.0803,141.24,141.21,0.2]
[1720445540213,7.0798,141.25,141.21,7.2813]
[1720445540413,1.77006634,141.28,141.21,0.2]
[1720445540580,7.0787,141.27,141.22,0.17]
[1720445540902,61.93668708,141.33,141.26,7.0788]
[1720445541215,15.0764,141.37,141.25,6.2694]
[1720445541411,1.76903655,141.36,141.27,0.17]
[1720445541574,7.0749,141.35,141.31,7.0764]
[1720445541775,1.76897257,141.38,141.32,7.0757]
[1720445542089,1.76897257,141.38,141.31,7.0765]
[1720445542090,7.0744,141.36,141.31,7.0765]
[1720445542276,7.0756,141.33,141.28,7.0777]
[1720445542472,7.0756,141.33,141.29,0.17]
[1720445542676,19.45254597,141.38,141.29,0.17]
[1720445543086,7.0767,141.31,141.26,7.2488]
[1720445543396,1.76915328,141.35,141.27,0.17]
[1720445543607,20.0,141.4,141.25,6.2694]
[1720445543898,7.0757,141.33,141.28,7.0777]
[1720445544285,7.0776,141.3,141.26,0.17]
[1720445544490,7.0777,141.29,141.25,13.3486]
[1720445544688,7.0791,141.27,141.25,6.2694]
[1720445545016,17.691,141.32,141.22,7.0811]
[1720445545017,7.0791,141.26,141.22,7.0811]
[1720445545185,7.0793,141.26,141.21,13.5348]
[1720445545700,7.08,141.25,141.21,13.5348]
[1720445546204,1.76978664,141.29,141.22,7.0809]
[1720445546402,7.0796,141.25,141.21,13.5351]
[1720445546703,7.0801,141.24,141.21,6.4535]
[1720445546885,1.76978664,141.29,141.21,13.5349]
[1720445547092,7.0792,141.26,141.21,13.5349]
[1720445547492,1.76978664,141.29,141.22,7.0807]
[1720445547695,21.76978664,141.29,141.23,1.41581157]
[1720445548003,21.76978664,141.29,141.21,6.6235]
[1720445548204,21.76978664,141.29,141.22,0.17]
[1720445548398,21.76978664,141.29,141.21,6.4535]
[1720445548599,21.76978664,141.29,141.22,7.2507]
[1720445548600,7.0788,141.27,141.22,7.2507]
[1720445548802,7.0782,141.28,141.22,0.17]
[1720445548998,21.76978664,141.29,141.22,0.17]
[1720445549179,27.0784,141.28,141.23,7.0802]
[1720445549383,7.0784,141.28,141.23,7.0802]
[1720445549684,7.0786,141.27,141.23,7.0802]
[1720445550413,7.0782,141.28,141.23,7.0802]
[1720445550592,1.76960139,141.31,141.25,7.0796]
[1720445550903,7.0785,141.28,141.26,1.41360999]
[1720445551318,7.0803,141.24,141.21,6.4535]
[1720445551614,1.76951345,141.35,141.22,0.94764717]
[1720445551789,7.0782,141.28,141.24,7.0801]
[1720445552396,7.0777,141.29,141.25,7.0796]
[1720445552595,7.0777,141.29,141.24,0.17]
[1720445552793,7.0788,141.27,141.22,7.0807]
[1720445553112,1.76951345,141.35,141.21,6.4535]
[1720445553293,7.0808,141.23,141.21,6.4535]
[1720445553490,7.41019025,141.33,141.21,6.4535]
[1720445553815,7.0802,141.24,141.21,6.4535]
[1720445554014,21.76993541,141.32,141.21,27.7635]
[1720445554199,7.078,141.29,141.25,7.0796]
[1720445554392,20.0,141.32,141.21,6.4535]
[1720445554691,1.76956666,141.31,141.22,0.34]
[1720445554891,1.76937084,141.36,141.31,7.0765]
[1720445555191,1.76872246,141.38,141.29,6.2415]
[1720445555392,1.768493,141.41,141.31,0.17]
[1720445555587,7.0744,141.36,141.32,7.0758]
[1720445555824,46.39,141.43,141.24,6.2415]
[1720445556000,22.20253801,141.42,141.24,6.2415]
[1720445556195,22.20253801,141.42,141.3,7.0767]
[1720445556427,1.76885664,141.42,141.25,100.0]
[1720445556601,1.76885664,141.42,141.31,7.0761]
[1720445556602,7.0742,141.36,141.31,7.0761]
[1720445556805,7.0738,141.37,141.32,7.076]
[1720445557412,1.76885664,141.42,141.31,7.2461]
[1720445557813,21.76885664,141.42,141.31,7.2461]
[1720445558315,7.0744,141.36,141.32,7.076]
[1720445558520,7.0733,141.38,141.33,7.0755]
[1720445558904,7.0733,141.38,141.34,7.075]
[1720445559217,7.0733,141.38,141.33,7.0755]
[1720445559526,7.0738,141.37,141.31,7.2462]
[1720445559900,7.0741,141.36,141.31,7.2462]
[1720445560205,7.0741,141.36,141.32,7.076]
[1720445560409,7.0737,141.37,141.32,8.49078378]
[1720445560718,7.0742,141.36,141.32,8.49078378]
[1720445561722,1.76885664,141.42,141.27,0.17]
[1720445561904,7.0766,141.32,141.27,7.0786]
[1720445562109,46.39,141.39,141.25,7.0795]
[1720445562311,7.0773,141.3,141.25,7.0795]
[1720445562530,7.0773,141.3,141.22,272.0513]
[1720445562531,7.0767,141.31,141.26,0.76573011]
[1720445563114,7.0767,141.31,141.26,7.84473011]
[1720445563434,7.0752,141.34,141.29,7.0771]
[1720445563615,7.0752,141.34,141.29,7.0775]
[1720445563805,1.76877296,141.33,141.27,7.0783]
[1720445564006,7.0772,141.3,141.26,7.0787]
[1720445564407,7.0777,141.29,141.25,0.17]
[1720445564605,7.0773,141.3,141.25,7.2492]
[1720445564824,7.0767,141.31,141.25,0.17]
[1720445565029,7.0767,141.31,141.26,1.41227655]
[1720445565203,1.76937305,141.36,141.28,7.0778]
[1720445565204,7.0757,141.33,141.28,7.0778]
[1720445565535,7.0747,141.35,141.31,7.0762]
[1720445565825,1.76856038,141.34,141.29,7.0775]
[1720445566147,7.076,141.33,141.29,7.0775]
[1720445566339,7.0763,141.32,141.25,0.17]
[1720445566529,9.17155281,141.39,141.28,7.0778]
[1720445566530,7.0758,141.33,141.28,7.0778]
[1720445566725,7.0758,141.33,141.25,0.51]
[1720445566726,7.0758,141.33,141.29,7.0774]
[1720445567239,7.0752,141.34,141.3,7.0771]
[1720445567421,7.0756,141.33,141.29,7.0775]
[1720445567758,7.0756,141.33,141.29,7.0774]
[1720445568045,9.17155281,141.39,141.27,0.17]
[1720445568252,9.17155281,141.39,141.25,0.34]
[1720445568253,21.76871278,141.38,141.26,0.17]
[1720445568455,1.76871278,141.41,141.32,6.2481]
[1720445568623,7.0732,141.38,141.34,7.0749]
[1720445568825,7.0725,141.4,141.36,7.0739]
[1720445569127,7.0721,141.4,141.37,0.82588193]
[1720445569336,7.0731,141.38,141.37,0.82588193]
[1720445569628,7.0731,141.38,141.35,0.82588198]
[1720445569830,1.76802602,141.41,141.36,0.82582359]
[1720445570150,7.0728,141.39,141.36,0.82582359]
[1720445570520,7.0741,141.36,141.33,0.17]
[1720445570721,7.0738,141.37,141.33,7.0754]
[1720445570925,1.76847085,141.43,141.33,0.17]
[1720445571144,1.7681462,141.42,141.33,0.34]
[1720445571331,7.0721,141.4,141.36,7.074]
[1720445571529,7.0717,141.41,141.37,7.0735]
[1720445571723,7.0716,141.41,141.37,7.0735]
[1720445572145,7.0721,141.4,141.36,7.074]
[1720445572353,7.0726,141.39,141.36,7.074]
[1720445572551,1.76814766,141.43,141.35,0.17]
[1720445572851,1.76800193,141.42,141.34,7.075]
[1720445573150,7.0736,141.37,141.33,7.2455]
[1720445573656,7.0738,141.37,141.33,0.17]
[1720445574056,7.0733,141.38,141.33,7.2453]
[1720445574342,1.76800193,141.42,141.32,13.3242]
[1720445574548,1.76800193,141.42,141.32,6.2481]
[1720445574853,7.0747,141.35,141.32,6.2481]
[1720445575225,1.76800193,141.42,141.32,6.2481]
[1720445575425,0.17,141.41,141.32,6.2481]
[1720445575640,1.76870217,141.4,141.32,6.2481]
[1720445575846,7.0738,141.37,141.32,13.3241]
[1720445576045,1.76870217,141.4,141.33,7.0756]
[1720445576046,7.0733,141.38,141.33,7.0756]
[1720445576256,7.0737,141.37,141.33,7.0756]
[1720445576647,7.0742,141.36,141.32,13.3241]
[1720445576850,7.0742,141.36,141.33,1.41369715]
[1720445577045,1.76846833,141.42,141.33,8.48909715]
[1720445577761,7.0729,141.39,141.34,7.075]
[1720445577963,7.0731,141.38,141.34,7.245]
[1720445578326,7.0738,141.37,141.33,7.0756]
[1720445580444,7.0741,141.36,141.32,5.9181]
[1720445580830,1.7683673,141.4,141.32,5.9181]
[1720445580831,7.0738,141.37,141.32,5.9181]
[1720445581037,1.7683673,141.4,141.32,5.9181]
[1720445581245,21.7683673,141.4,141.32,5.9181]
[1720445581459,7.0742,141.36,141.32,12.9939]
[1720445581861,7.0738,141.37,141.32,12.9939]
[1720445582169,21.7683673,141.4,141.32,12.9941]
[1720445582372,7.0743,141.36,141.32,12.9941]
[1720445582591,7.0756,141.33,141.32,5.7481]
[1720445582880,1.76859117,141.42,141.32,5.7481]
[1720445583168,7.0733,141.38,141.33,0.65300606]
[1720445585580,7.0723,141.4,141.37,1.41351379]
[1720445585743,1.76817699,141.44,141.37,1.41351379]
[1720445586064,1.76817699,141.44,141.32,5.7481]
[1720445586065,7.0751,141.34,141.32,5.7481]
[1720445586265,37.98,141.43,141.32,5.7481]
[1720445586472,37.98,141.43,141.33,0.17]
[1720445586777,37.98,141.43,141.33,7.2456]
[1720445586778,7.0739,141.37,141.33,7.2456]
[1720445586977,7.0741,141.36,141.32,5.7481]
[1720445587155,1.76838195,141.41,141.32,5.7481]
[1720445587156,7.0746,141.35,141.32,5.7481]
[1720445587476,1.76838195,141.41,141.32,5.7481]
[1720445587781,1.76838195,141.41,141.33,0.17]
[1720445588080,7.0732,141.38,141.34,7.0748]
[1720445588267,7.0727,141.39,141.35,7.0744]
[1720445588771,7.0715,141.42,141.35,15.9448]
[1720445588953,1.76814301,141.46,141.38,7.0727]
[1720445589269,7.40212649,141.44,141.36,0.34]
[1720445589473,7.0708,141.43,141.39,7.0723]
[1720445589650,7.40212649,141.44,141.4,7.072]
[1720445589848,7.40212649,141.44,141.36,0.34]
[1720445589849,7.40212649,141.44,141.38,7.073]
[1720445590049,7.40212649,141.44,141.36,0.34]
[1720445590354,7.0714,141.42,141.38,7.073]
[1720445591146,7.40212649,141.44,141.36,0.34]
[1720445591352,1.76778813,141.43,141.36,0.34]
[1720445591554,7.0724,141.4,141.36,7.2438]
[1720445592091,7.0718,141.41,141.37,7.0736]
[1720445592255,7.0722,141.4,141.36,7.074]
[1720445592460,7.0727,141.39,141.35,23.0193]
[1720445592766,7.0723,141.4,141.36,7.0741]
[1720445593561,1.76818332,141.39,141.32,21.14]
[1720445593763,7.0734,141.38,141.34,7.075]
[1720445593962,7.0734,141.38,141.35,0.52636107]
[1720445594278,20.0,141.43,141.35,0.52636107]
[1720445594279,7.0726,141.39,141.35,7.60086107]
[1720445594581,1.76818493,141.38,141.32,21.14]
[1720445594770,7.0745,141.36,141.32,28.2161]
[1720445595385,7.0738,141.37,141.33,7.0756]
[1720445596061,7.0733,141.38,141.34,7.0751]
[1720445597283,7.0727,141.39,141.35,7.0742]
[1720445597586,7.0722,141.4,141.36,7.074]
[1720445597794,7.0717,141.41,141.37,7.0733]
[1720445597973,7.40212649,141.44,141.36,7.0739]
[1720445598174,1.76807285,141.43,141.32,21.14]
[1720445598389,7.40212649,141.44,141.33,0.6568133]
[1720445598390,7.0745,141.36,141.33,0.6568133]
[1720445598588,1.76832662,141.42,141.33,0.6568133]
[1720445598887,7.0736,141.37,141.33,7.7322133]
[1720445599093,1.76832662,141.42,141.33,7.7322133]
[1720445599267,7.0738,141.37,141.33,7.7322133]
[1720445599572,1.76832662,141.42,141.37,7.0732]
[1720445599573,7.0717,141.41,141.37,7.0732]
[1720445599772,7.40212649,141.44,141.38,1.17727874]
[1720445599977,7.0707,141.43,141.39,7.0725]
[1720445600181,7.0711,141.42,141.4,1.00713626]
[1720445600794,61.48038161,141.47,141.33,8.48868604]
[1720445600795,1.76778295,141.41,141.33,8.48868604]
[1720445601098,22.193992,141.46,141.33,8.48868604]
[1720445601270,7.0741,141.36,141.33,7.0755]
[1720445601474,7.0741,141.36,141.32,21.14]
[1720445601475,7.0741,141.36,141.32,28.2159]
[1720445601672,7.0739,141.37,141.33,7.0756]
[1720445601877,7.0741,141.36,141.33,7.0756]
[1720445602475,7.0738,141.37,141.33,7.0756]
[1720445602997,1.76850099,141.42,141.32,21.14]
[1720445603297,0.17,141.41,141.32,21.14]
[1720445603682,1.76864197,141.4,141.32,5.7481]
[1720445603882,0.17,141.39,141.29,7.0775]
[1720445604090,21.93890558,141.39,141.29,7.0775]
[1720445604800,21.93890558,141.39,141.3,7.077]
[1720445605709,21.76890558,141.39,141.33,7.0755]
[1720445606002,21.76890558,141.39,141.32,7.076]
[1720445606783,21.76890558,141.39,141.28,21.9362]
[1720445607430,0.17,141.38,141.28,29.0139]
[1720445607580,1.93900676,141.38,141.29,7.0775]
[1720445607980,1.76900676,141.38,141.28,21.9362]
[1720445608290,6.6308,141.42,141.35,7.0743]
[1720445608493,16.3891,141.44,141.35,7.0743]
[1720445608694,16.3891,141.44,141.34,7.0751]
[1720445609182,1.76828399,141.43,141.34,7.0751]
[1720445609591,42.19605803,141.43,141.34,7.0751]
[1720445609813,1.76828129,141.46,141.36,0.17]
[1720445610015,1.76742369,141.47,141.41,7.0713]
[1720445610206,1.76742369,141.47,141.36,0.34]
[1720445610386,9.14873163,141.5,141.43,7.0705]
[1720445610711,9.14873163,141.5,141.41,7.0713]
[1720445610712,1.76736139,141.5,141.41,7.0713]
[1720445611012,1.76736139,141.5,141.42,0.38707431]
[1720445611224,1.76736139,141.5,141.42,21.7588]
[1720445611425,1.76702828,141.51,141.43,0.17]
[1720445611728,1.76702828,141.51,141.44,7.0699]
[1720445611895,22.18270923,141.53,141.43,0.17]
[1720445612212,1.7670302,141.53,141.47,7.0683]
[1720445612413,1.76663998,141.54,141.47,7.0683]
[1720445612817,1.76664344,141.55,141.48,0.17]
[1720445613017,7.37915012,141.58,141.52,6.6178]
[1720445613206,0.2,141.59,141.52,6.6178]
[1720445613392,0.2,141.59,141.54,7.0651]
[1720445613611,0.2,141.59,141.55,1.40818339]
[1720445614213,0.2,141.59,141.53,7.2355]
[1720445614400,0.2,141.59,141.53,0.17]
[1720445614809,0.2,141.59,141.53,7.2355]
[1720445615442,0.2,141.59,141.47,6.4114]
[1720445615623,1.9660011,141.59,141.47,6.4114]
[1720445615806,0.17,141.58,141.48,7.0681]
[1720445616004,1.93658294,141.58,141.48,7.0681]
[1720445617005,1.93658294,141.58,141.49,7.0675]
[1720445617297,1.76658294,141.58,141.51,7.0666]
[1720445617503,1.76658294,141.58,141.5,0.17]
[1720445617705,1.96627075,141.59,141.5,0.34]
[1720445617904,0.2,141.59,141.54,7.0647]
[1720445618508,0.2,141.59,141.53,0.17]
[1720445618815,0.2,141.59,141.5,0.17]
[1720445619129,0.2,141.59,141.5,7.2371]
[1720445619518,0.2,141.59,141.52,7.066]
[1720445620236,0.2,141.59,141.5,0.17]
[1720445620437,0.2,141.59,141.53,0.17]
[1720445620611,0.2,141.59,141.5,0.17]
[1720445620811,0.2,141.59,141.54,7.065]
[1720445621236,0.2,141.59,141.53,7.0655]
[1720445621438,0.2,141.59,141.54,0.45140731]
[1720445621611,0.2,141.59,141.55,0.34]
[1720445621816,0.2,141.59,141.57,7.0635]
[1720445622045,0.2,141.59,141.58,7.0631]
[1720445622824,0.2,141.59,141.58,7.2331]
[1720445623837,0.2,141.59,141.58,0.17]
[1720445624011,0.2,141.59,141.57,7.0635]
[1720445624213,0.2,141.59,141.56,0.17]
[1720445624413,0.2,141.59,141.55,7.0646]
[1720445624635,0.2,141.59,141.52,6.4778]
[1720445624818,0.2,141.59,141.54,7.065]
[1720445625139,0.2,141.59,141.56,7.0638]
[1720445625344,0.2,141.59,141.58,7.0631]
[1720445626137,0.2,141.59,141.58,7.4031]
[1720445626336,0.2,141.59,141.58,30.28919007]
[1720445626727,0.2,141.59,141.58,8.97919007]
[1720445627426,0.2,141.69,141.59,6.0623]
[1720445627620,0.2,141.69,141.64,7.0597]
[1720445628440,0.2,141.69,141.62,7.0606]
[1720445628737,1.96459793,141.69,141.6,0.34]
[1720445629132,1.96459793,141.69,141.6,7.4017]
[1720445629325,1.96459793,141.69,141.6,7.2317]
[1720445629527,0.2,141.69,141.6,7.2317]
[1720445629744,1.96498389,141.69,141.61,7.0614]
[1720445630036,1.96498389,141.69,141.63,7.0605]
[1720445630253,1.96498389,141.69,141.65,7.0596]
[1720445630423,1.96498389,141.69,141.64,7.06]
[1720445630822,0.2,141.69,141.64,7.06]
[1720445631132,1.7646432,141.68,141.62,0.17]
[1720445631328,1.7646432,141.68,141.59,6.0623]
[1720445631542,1.7646432,141.68,141.6,7.2318]
[1720445631744,1.7646432,141.68,141.59,7.0625]
[1720445631927,1.7646432,141.68,141.57,7.0633]
[1720445632122,1.96519754,141.69,141.56,6.2456]
[1720445632641,1.96519754,141.69,141.58,7.0627]
[1720445632846,0.17,141.68,141.57,7.0635]
[1720445633158,1.76552988,141.67,141.58,7.063]
[1720445633447,22.5383,141.65,141.52,6.0222]
[1720445633615,21.76564033,141.64,141.55,7.0642]
[1720445633823,21.76564033,141.64,141.53,7.0652]
[1720445634026,21.76564033,141.64,141.54,7.065]
[1720445634242,0.17,141.63,141.52,6.0222]
[1720445634423,0.17,141.63,141.52,7.066]
[1720445634424,1.93600054,141.63,141.52,7.066]
[1720445634837,1.93600054,141.63,141.48,6.6039]
[1720445635646,1.93600054,141.63,141.52,7.0656]
[1720445635824,39.91600054,141.63,141.51,7.0665]
[1720445636024,20.0,141.62,141.51,7.0665]
[1720445636231,21.8345,141.6,141.45,15.8731]
[1720445636432,59.91666785,141.59,141.47,7.0682]
[1720445637239,59.91666785,141.59,141.42,6.2663]
[1720445637467,59.91666785,141.59,141.45,7.0695]
[1720445637634,37.98,141.55,141.44,7.0699]
[1720445637953,21.9370181,141.54,141.44,7.0699]
[1720445638333,21.9370181,141.54,141.45,7.0695]
[1720445638658,21.6771,141.53,141.38,6.3878]
[1720445638853,21.76719028,141.52,141.44,7.07]
[1720445639029,1.7672254,141.51,141.43,7.0705]
[1720445639546,1.7672254,141.51,141.38,6.3878]
[1720445640047,1.7672254,141.51,141.36,15.6577]
[1720445640252,0.17,141.5,141.35,21.31]
[1720445640431,1.76759957,141.49,141.34,6.0655]
[1720445640825,0.17,141.48,141.34,6.0655]
[1720445641047,0.17,141.48,141.31,21.54833782]
[1720445641048,21.9754,141.47,141.31,15.8577]
[1720445641269,21.93825814,141.46,141.31,15.8577]
[1720445641439,1.76819298,141.45,141.31,15.8577]
[1720445642367,0.17,141.44,141.31,0.2]
[1720445642571,1.93833016,141.44,141.31,0.2]
[1720445643469,22.2628,141.42,141.31,0.2]
[1720445643658,21.93902609,141.41,141.31,0.2]
[1720445645070,37.98,141.39,141.31,0.2]
[1720445645275,21.76943434,141.38,141.31,0.2]
[1720445645573,37.98,141.35,141.21,0.2]
[1720445645760,21.76986876,141.34,141.21,0.2]
[1720445645977,21.93986876,141.34,141.21,0.2]
[1720445646775,22.0593,141.3,141.21,0.2]
[1720445646991,21.94047079,141.29,141.21,0.2]
[1720445647370,21.94047079,141.29,141.12,7.40120144]
[1720445647677,37.98,141.25,141.11,0.2]
[1720445647869,1.94127814,141.24,141.11,0.2]
[1720445648190,1.7712693,141.23,141.11,0.2]
[1720445648374,0.17,141.22,141.11,0.2]
[1720445648588,1.77126441,141.21,141.11,0.2]
[1720445648754,1.77114969,141.2,141.11,0.2]
[1720445649449,22.0446,141.19,141.11,0.2]
[1720445649653,1.77171753,141.18,141.11,0.2]
[1720445649883,1.94171512,141.17,141.11,0.2]
[1720445650089,1.94171512,141.17,141.01,0.2]
[1720445650256,37.98,141.14,141.01,0.2]
[1720445650588,1.94171512,141.17,141.01,0.2]
[1720445650589,1.77240436,141.13,141.01,0.2]
[1720445650751,0.17,141.12,141.01,1.25941603]
[1720445650952,0.17,141.12,141.02,1.05971666]
[1720445650953,1.77220375,141.12,141.02,1.05971666]
[1720445651583,1.77220375,141.12,141.01,0.2]
[1720445651758,0.17,141.11,141.01,0.2]
[1720445651956,1.772608,141.1,141.01,0.2]
[1720445652151,1.772608,141.1,141.01,1.61784521]
[1720445652382,1.772608,141.1,141.01,0.2]
[1720445652588,23.2863,141.09,141.01,0.2]
[1720445652756,21.77290438,141.08,141.01,0.2]
[1720445652958,1.77263751,141.07,141.01,0.2]
[1720445653158,15.0,141.18,141.01,0.2]
[1720445653159,1.77247433,141.13,141.01,0.2]
[1720445653784,0.17,141.12,141.01,0.2]
[1720445654093,46.57,141.1,141.01,0.2]
[1720445654386,21.94304573,141.09,141.01,0.2]
[1720445656194,1.77304573,141.09,141.01,0.2]
[1720445656369,1.77230718,141.13,141.01,0.2]
[1720445656768,46.57,141.1,141.01,0.2]
[1720445656968,1.77286644,141.09,141.01,0.2]
[1720445657667,0.17,141.08,141.01,0.2]
[1720445657868,1.77298529,141.07,141.01,0.2]
[1720445658061,0.17,141.06,141.01,0.2]
[1720445658264,1.94306722,141.06,141.01,0.2]
[1720445658985,1.7730695,141.08,141.01,0.2]
[1720445659182,46.57,141.14,141.01,0.2]
[1720445659183,1.77229267,141.07,141.01,0.2]
[1720445659385,1.77275505,141.12,141.01,0.2]
[1720445661908,1.77232811,141.11,141.02,0.17]
[1720445662299,1.77232811,141.11,141.01,0.2]
[1720445662814,0.17,141.1,141.01,0.2]
[1720445662981,1.94277206,141.1,141.01,0.2]
[1720445663396,1.77277206,141.1,141.01,0.2]
[1720445663606,0.17,141.09,141.01,0.2]
[1720445664411,21.94302023,141.09,141.01,0.2]
[1720445665717,21.77302023,141.09,141.01,0.2]
[1720445667304,0.17,141.08,141.01,0.2]
[1720445667605,1.77310681,141.07,141.01,0.2]
[1720445667797,1.77305587,141.08,141.01,0.2]
[1720445668005,1.77228632,141.13,141.02,0.17]
[1720445668208,1.77228632,141.13,141.01,0.2]
[1720445668387,1.77228632,141.13,141.02,0.17]
[1720445668582,1.77228632,141.13,141.01,0.2]
[1720445670087,0.17,141.12,141.01,0.2]
[1720445670390,1.77267427,141.11,141.01,0.2]
[1720445670591,1.94259051,141.1,141.01,0.2]
[1720445670807,1.77259051,141.1,141.01,0.2]
[1720445671605,53.97414819,141.14,141.01,0.2]
[1720445671797,1.77250078,141.13,141.01,0.2]
[1720445672316,9.17739904,141.13,141.01,0.2]
[1720445672696,20.0,141.12,141.01,0.2]
[1720445673000,1.94273093,141.11,141.01,0.2]
[1720445673203,1.7724707,141.1,141.01,0.2]
[1720445674691,0.17,141.09,141.01,0.2]
[1720445675003,1.7726223,141.08,141.01,0.2]
[1720445675697,0.17,141.07,141.01,0.2]
[1720445675896,7.0911,141.02,141.01,0.2]
[1720445676401,1.77322078,141.04,141.01,0.2]
[1720445676919,1.77267268,141.08,141.01,0.2]
[1720445677121,1.77247106,141.07,141.01,0.2]
[1720445677420,1.77240898,141.06,141.01,0.2]
[1720445677901,21.703,141.1,141.01,0.2]
[1720445678100,38.11,141.09,141.01,0.2]
[1720445678318,21.9431899,141.08,141.01,0.2]
[1720445681117,38.11,141.05,141.01,0.0001]
[1720445681300,21.94371189,141.04,141.01,0.0001]
[1720445682537,22.3809,141.03,140.91,0.2]
[1720445682742,21.94368819,141.02,140.91,0.2]
[1720445682905,1.77370932,141.01,140.91,0.2]
[1720445683520,1.77329374,141.05,140.91,0.2]
[1720445684022,1.77329374,141.05,140.91,0.83159678]
[1720445684412,0.17,141.04,140.91,0.83159678]
[1720445684637,39.88392651,141.03,140.91,0.2]
[1720445684811,0.17,141.02,140.91,0.2]
[1720445685013,1.77372078,141.01,140.91,0.2]
[1720445685235,0.17,141.0,140.91,0.2]
[1720445685437,1.94385472,141.0,140.91,0.2]
[1720445686042,1.77385472,141.0,140.91,0.2]
[1720445686413,1.94384795,141.01,140.91,0.2]
[1720445687614,1.77384795,141.01,140.91,0.2]
[1720445688018,1.77368438,141.0,140.91,0.2]
[1720445688411,1.7735886,141.04,140.91,0.2]
[1720445688812,1.7735886,141.04,140.92,0.17]
[1720445689248,1.7735886,141.04,140.92,0.34]
[1720445689940,1.77293142,141.03,140.94,0.17]
[1720445690116,1.77294328,141.06,140.93,6.3059]
[1720445690842,1.77294328,141.06,140.94,0.17]
[1720445691426,0.17,141.05,140.93,6.3059]
[1720445691626,1.77357817,141.04,140.93,6.3059]
[1720445691943,0.17,141.03,140.93,6.3059]
[1720445692244,1.77357755,141.02,140.93,6.3059]
[1720445692454,1.94364718,141.01,140.93,6.3059]
[1720445692625,1.77364718,141.01,140.93,6.3059]
[1720445693256,0.17,141.0,140.93,6.3059]
[1720445693428,1.77401343,140.99,140.91,0.2]
[1720445693763,1.77408315,140.98,140.91,0.2]
[1720445695224,0.17,140.97,140.91,0.2]
[1720445695535,1.77451107,140.96,140.91,0.2]
[1720445695738,1.9445937,140.95,140.91,0.2]
[1720445698545,38.11,140.94,140.91,0.2]
[1720445698863,25.0441937,140.95,140.81,0.2]
[1720445698864,21.94488958,140.93,140.81,0.2]
[1720445699049,38.11,140.91,140.81,0.2]
[1720445699247,21.94512413,140.9,140.81,0.2]
[1720445699452,1.77529127,140.89,140.81,0.2]
[1720445699658,0.17,140.88,140.81,0.2]
[1720445699837,1.94526281,140.88,140.81,0.2]
[1720445700037,1.77526281,140.88,140.81,0.2]
[1720445700530,1.77498309,140.89,140.81,0.2]
[1720445701542,38.11,140.87,140.81,0.2]
[1720445701753,21.77592606,140.86,140.81,0.2]
[1720445702279,38.11,140.83,140.7,15.93]
[1720445702449,38.11,140.79,140.68,6.397]
[1720445702775,21.94684958,140.78,140.68,6.397]
[1720445703261,1.77676031,140.77,140.64,6.3229]
[1720445703462,38.28,140.76,140.64,6.3229]
[1720445703671,1.7774639,140.75,140.64,6.3229]